lending/lending_fUSD_20250913
["ID","MTS","AMOUNT","RATE_DAILY","PERIOD"]
[385366693,1757793032632,-500.0,0.00025073,2]
[385366695,1757793032641,-500.0,0.00025073,2]
[385366697,1757793032650,-500.0,0.00025083,2]
[385366699,1757793032659,-194.83808464,0.0002509,3]
[385366702,1757793032678,-300.43986072,0.0002509,3]
[385366705,1757793032694,-32387.01095084,0.0002509,3]
[385366707,1757793032703,-78254.0,0.000251,3]
[385366709,1757793032713,-14197.5583678,0.00025375,2]
[385366711,1757793032722,-4310.64807829,0.00025475,2]
[385366713,1757793032732,-150.0,0.00025619,4]
[385366715,1757793032742,-150.0,0.00025619,4]
[385366717,1757793032751,-150.0,0.00025619,4]
[385366719,1757793032763,-81.38959115,0.00025619,4]
[385366721,1757793032775,-68.61040885,0.00025619,4]
[385366723,1757793032785,-150.0,0.00025619,4]
[385366725,1757793032795,-150.0,0.00025619,4]
[385366727,1757793032805,-150.0,0.00025619,4]
[385366730,1757793032816,-150.0,0.00025619,4]
[385366732,1757793032833,-284.57182896,0.00025619,4]
[385366733,1757793032843,-150.0,0.00025619,4]
[385366736,1757793032853,-150.0,0.00025619,4]
[385366738,1757793032863,-150.0,0.00025619,4]
[385366740,1757793032872,-150.0,0.00025619,4]
[385366742,1757793032882,-1000.0,0.00025621,2]
[385366744,1757793032893,-681.9,0.00025778,2]
[385366746,1757793032902,-16441.1444481,0.00026005,3]
[385366748,1757793032912,-13104.1408289,0.00026015,2]
[385366851,1757793037426,-515.60081738,0.00023241,3]
[385366852,1757793037436,-2366.83418509,0.00026015,2]
[385366853,1757793037635,-10374.02498601,0.00026015,2]
[385366854,1757793037645,-1500.0,0.00026168,2]
[385366855,1757793037656,-952.21004202,0.00026194,2]
[385366856,1757793037665,-14197.55836772,0.00026681,2]
[385366857,1757793037675,-1337.61491795,0.00026716,2]
[385366858,1757793037685,-500.0,0.0002711,2]
[385366859,1757793037694,-264.27,0.00027397,2]
[385366860,1757793037703,-400.0,0.00027821,2]
[385366861,1757793037714,-810.78,0.00027821,2]
[385366862,1757793037724,-799.75,0.00027821,2]
[385366863,1757793037733,-837.71,0.00027821,2]
[385366864,1757793037743,-400.0,0.00027821,2]
[385366865,1757793037754,-400.0,0.00027821,2]
[385366866,1757793037763,-400.0,0.00027821,2]
[385366867,1757793037773,-400.0,0.00027821,2]
[385366868,1757793037782,-400.0,0.00027821,2]
[385366869,1757793037792,-252.82159248,0.00027844,2]
[385366871,1757793037802,-356.37,0.00027853,2]
[385366873,1757793037811,-16441.1444481,0.00027863,3]
[385366875,1757793037821,-32882.2888962,0.00027929,3]
[385366877,1757793037831,-16441.1444481,0.00027929,3]
[385366880,1757793037846,-16441.1444481,0.00027933,3]
[385366882,1757793037856,-32882.2888962,0.00027934,3]
[385366884,1757793037865,-20046.20776661,0.00027934,3]
[385367048,1757793039413,-274.84153313,0.00027934,3]
[385367076,1757793039674,-207.02683746,0.00027934,3]
[385367078,1757793039684,-408.55191111,0.00027943,2]
[385367080,1757793039693,-219.09465134,0.00027943,2]
[385367082,1757793039705,-264.24534866,0.00027943,2]
[385367090,1757793039772,-204.55863801,0.00027943,2]
[385367337,1757793042648,-14.23482404,0.00021127,2]
[385367348,1757793049500,2000.0,0.00027267,120]
[385367349,1757793081657,165.42,0.00029604,30]
[385367351,1757793188548,200.9314125,0.00016,14]
[385367352,1757793206476,2000.0,0.00024658,15]
[385367355,1757793318196,1006.96,0.0003013,120]
[385367359,1757793647851,153.21,0.00027425,30]
[385367361,1757793803281,2000.0,0.00024658,15]
[385367362,1757793861923,1500.0,0.00025416,120]
[385367364,1757793932394,169.69,0.00012582,2]
[385367366,1757793981285,1113.6,0.00025208,120]
[385367367,1757793981484,1113.6,0.00028359,120]
[385367368,1757794065804,2000.0,0.00025165,120]
[385367369,1757794152120,-300.0,0.00021029,2]
[385367370,1757794152140,-189.6971427,0.00021029,2]
[385367371,1757794152160,-2000.0,0.00021029,3]
[385367372,1757794152181,-300.0,0.00021029,2]
[385367373,1757794152201,-484.7686,0.00021029,2]
[385367374,1757794152222,-1570.6682713,0.0002103,3]
[385367375,1757794231721,-500.0,0.00021029,2]
[385367376,1757794231730,-198.0,0.00021029,2]
[385367377,1757794231740,-1200.0,0.00021029,2]
[385367378,1757794231749,-429.3317287,0.0002103,3]
[385367379,1757794231758,-2000.0,0.0002103,3]
[385367380,1757794231767,-2000.0,0.0002103,3]
[385367381,1757794231776,-300.0,0.00021036,2]
[385367382,1757794231786,-300.0,0.00021036,2]
[385367383,1757794231795,-300.0,0.00021036,2]
[385367384,1757794231804,-157.0,0.00022918,2]
[385367385,1757794231814,-1680.0,0.00022983,2]
[385367386,1757794231823,-300.0,0.00023132,2]
[385367387,1757794231833,-2000.0,0.00023132,3]
[385367388,1757794231843,-515.60081738,0.00023132,3]
[385367389,1757794231852,-160.0,0.00023132,3]
[385367390,1757794231862,-300.0,0.00023132,2]
[385367391,1757794231871,-2500.0,0.00023132,2]
[385367392,1757794231881,-2500.0,0.00023132,2]
[385367393,1757794231891,-1220.06745392,0.00023132,2]
[385367394,1757794231938,-1279.93254608,0.00023132,2]
[385367395,1757794231949,-1203.85787543,0.00023132,2]
[385367396,1757794231963,-1296.14212457,0.00023132,2]
[385367397,1757794231972,-8.85787543,0.00023132,2]
[385367398,1757794232103,-2491.14212457,0.00023132,2]
[385367399,1757794232113,-1424.35700745,0.00023132,3]
[385367421,1757794237618,-575.64299255,0.00023132,3]
[385367422,1757794237627,-160.0,0.00023132,3]
[385367423,1757794237637,-212.99211257,0.00023132,3]
[385367424,1757794237646,-232.18512096,0.00024488,2]
[385367425,1757794237657,-248.17487904,0.00024488,2]
[385367426,1757794237667,-150.0,0.00024663,7]
[385367427,1757794237675,-267.26922032,0.000249,2]
[385367428,1757794237687,-790.74062147,0.000249,2]
[385367429,1757794237699,-3955.72827604,0.000249,2]
[385367430,1757794237708,-164.7,0.00024923,2]
[385367431,1757794237717,-500.0,0.00024932,2]
[385367432,1757794237726,-441.37,0.00025026,2]
[385367433,1757794237735,-196.62,0.00025121,2]
[385367434,1757794237745,-250.0,0.00025121,2]
[385367435,1757794237754,-169.69,0.00025165,2]
[385367436,1757794237763,-150.0,0.00025619,4]
[385367437,1757794237772,-150.0,0.00025619,4]
[385367438,1757794237781,-150.0,0.00025619,4]
[385367439,1757794237791,-161.82,0.00025656,2]
[385367440,1757794237800,-150.0,0.00027042,4]
[385367441,1757794237809,-514.0,0.00027137,2]
[385367442,1757794237819,-5097.4280924,0.00027363,2]
[385367443,1757794237828,-251.05,0.00027397,2]
[385367444,1757794237837,-4168.0,0.00027664,2]
[385367445,1757794237846,-6316.994,0.00027664,2]
[385367446,1757794237856,-491.27356747,0.00027664,2]
[385367594,1757794239760,-18361.72643253,0.00027664,2]
[385367595,1757794239770,-726.0,0.00027664,2]
[385367596,1757794239779,-296.0040034,0.0002781,2]
[385367597,1757794239788,-500.0,0.00027819,2]
[385367598,1757794239798,-501.79614567,0.00027819,2]
[385367599,1757794239807,-500.0,0.00027819,2]
[385367600,1757794239816,-207.19222247,0.00027819,2]
[385367601,1757794239825,-500.0,0.00027819,2]
[385367602,1757794239835,-500.0,0.00027819,2]
[385367603,1757794239844,-233.23037456,0.00027819,2]
[385367604,1757794239854,-500.0,0.00027819,2]
[385367605,1757794239863,-500.0,0.00027819,2]
[385367606,1757794239872,-500.0,0.00027819,2]
[385367607,1757794239881,-500.0,0.00027819,2]
[385367608,1757794239891,-500.0,0.00027819,2]
[385367609,1757794239900,-500.0,0.00027819,2]
[385367610,1757794239909,-500.0,0.00027819,2]
[385367611,1757794239919,-500.0,0.00027819,2]
[385367612,1757794239929,-505.70210676,0.00027819,2]
[385367613,1757794239938,-500.0,0.00027819,2]
[385367614,1757794239948,-225.95735296,0.00027819,2]
[385367615,1757794239957,-500.0,0.00027819,2]
[385367616,1757794239967,-500.0,0.00027819,2]
[385367617,1757794239976,-500.0,0.00027819,2]
[385367618,1757794239985,-500.0,0.00027819,2]
[385367619,1757794239994,-500.0,0.00027819,2]
[385367620,1757794240003,-500.0,0.00027819,2]
[385367621,1757794240012,-500.0,0.00027819,2]
[385367622,1757794240021,-500.0,0.00027819,2]
[385367623,1757794240031,-500.0,0.00027819,2]
[385367624,1757794240040,-500.0,0.00027819,2]
[385367625,1757794240049,-500.0,0.00027819,2]
[385367626,1757794240059,-500.0,0.00027819,2]
[385367627,1757794240068,-500.0,0.00027819,2]
[385367629,1757794240077,-500.0,0.00027819,2]
[385367631,1757794240086,-500.0,0.00027819,2]
[385367633,1757794240095,-500.0,0.00027819,2]
[385367635,1757794240104,-500.0,0.00027819,2]
[385367637,1757794240114,-400.0,0.00027821,2]
[385367639,1757794240123,-471.03,0.00027821,2]
[385367641,1757794240132,-400.0,0.00027821,2]
[385367643,1757794240142,-400.0,0.00027821,2]
[385367645,1757794240151,-735.62,0.00027821,2]
[385367647,1757794240160,-400.0,0.00027821,2]
[385367649,1757794240170,-814.58,0.00027821,2]
[385367651,1757794240179,-1019.8,0.00027821,2]
[385367653,1757794240188,-400.0,0.00027821,2]
[385367654,1757794240198,-872.48,0.00027821,2]
[385367656,1757794240207,-1231.93,0.00027821,2]
[385367658,1757794240217,-646.85,0.00027821,2]
[385367659,1757794240226,-454.6,0.00027821,2]
[385367660,1757794240238,-503.23,0.00027821,2]
[385367662,1757794240247,-1472.49,0.00027821,2]
[385367664,1757794240256,-507.98,0.00027821,2]
[385367666,1757794240265,-400.0,0.00027821,2]
[385367668,1757794240276,-927.69,0.00027821,2]
[385367670,1757794240286,-400.0,0.00027821,2]
[385367672,1757794240295,-400.0,0.00027821,2]
[385367674,1757794240304,-1512.11,0.00027821,2]
[385367676,1757794240313,-449.65,0.00027821,2]
[385367678,1757794240324,-400.0,0.00027821,2]
[385367680,1757794240334,-400.0,0.00027821,2]
[385367682,1757794240343,-400.0,0.00027821,2]
[385367684,1757794240354,-1151.91,0.00027821,2]
[385367686,1757794240364,-400.0,0.00027821,2]
[385367688,1757794240373,-816.95,0.00027821,2]
[385367690,1757794240382,-400.0,0.00027821,2]
[385367692,1757794240391,-400.0,0.00027821,2]
[385367694,1757794240400,-400.0,0.00027821,2]
[385367696,1757794240409,-795.49,0.00027821,2]
[385367698,1757794240420,-1032.45,0.00027821,2]
[385367700,1757794240429,-400.0,0.00027821,2]
[385367702,1757794240438,-1075.27,0.00027821,2]
[385367704,1757794240447,-534.32,0.00027821,2]
[385367706,1757794240456,-877.285,0.00027843,2]
[385367708,1757794240465,-2500.0,0.00027843,2]
[385367710,1757794240475,-1000.0,0.00027849,2]
[385367712,1757794240484,-500.0,0.00027873,5]
[385367714,1757794240493,-500.0,0.00027873,5]
[385367716,1757794240502,-500.0,0.00027873,2]
[385367718,1757794240511,-500.0,0.00027873,5]
[385367720,1757794240520,-400.0,0.00027943,2]
[385367722,1757794240530,-400.0,0.00027943,2]
[385367724,1757794240539,-400.0,0.00027943,2]
[385367726,1757794240548,-560.25,0.00027943,2]
[385367728,1757794240557,-400.0,0.00027943,2]
[385367730,1757794240567,-400.0,0.00027943,2]
[385367732,1757794240575,-500.0,0.00027943,2]
[385367734,1757794240585,-400.0,0.00027943,2]
[385367736,1757794240595,-400.0,0.00027943,2]
[385367738,1757794240604,-406.01274565,0.00027943,2]
[385367740,1757794240614,-400.0,0.00027943,2]
[385367742,1757794240623,-421.2212751,0.00027943,2]
[385367744,1757794240632,-1098.8,0.00027943,2]
[385367746,1757794240642,-400.0,0.00027943,2]
[385367748,1757794240651,-400.0,0.00027943,2]
[385367750,1757794240660,-400.0,0.00027943,2]
[385367752,1757794240669,-400.0,0.00027943,2]
[385367754,1757794240678,-400.0,0.00027943,2]
[385367756,1757794240687,-597.15,0.00027943,2]
[385367758,1757794240696,-400.0,0.00027943,2]
[385367760,1757794240706,-400.0,0.00027943,2]
[385367762,1757794240715,-400.0,0.00027943,2]
[385367764,1757794240724,-400.0,0.00027943,2]
[385367766,1757794240733,-577.05,0.00027943,2]
[385367768,1757794240742,-552.85,0.00027943,2]
[385367770,1757794240751,-495.86,0.00027943,2]
[385367772,1757794240760,-458.38,0.00027943,2]
[385367774,1757794240769,-400.0,0.00027943,2]
[385367776,1757794240778,-1117.25,0.00027943,2]
[385367778,1757794240787,-400.0,0.00027943,2]
[385367780,1757794240796,-855.5,0.00027943,2]
[385367782,1757794240805,-400.0,0.00027943,2]
[385367783,1757794240814,-400.0,0.00027943,2]
[385367785,1757794240823,-400.0,0.00027943,2]
[385367787,1757794240832,-400.0,0.00027943,2]
[385367794,1757794240841,-400.0,0.00027943,2]
[385367796,1757794240892,-400.0,0.00027943,2]
[385367798,1757794240901,-400.0,0.00027943,2]
[385367800,1757794240909,-400.0,0.00027943,2]
[385367802,1757794240919,-400.0,0.00027943,2]
[385367804,1757794240928,-400.0,0.00027943,2]
[385367806,1757794240937,-400.0,0.00027943,2]
[385367808,1757794240945,-400.0,0.00027943,2]
[385367810,1757794240954,-463.2,0.00027943,2]
[385367812,1757794240963,-400.0,0.00027943,2]
[385367814,1757794240973,-400.0,0.00027943,2]
[385367816,1757794240981,-617.72,0.00027943,2]
[385367818,1757794240990,-500.0,0.00027943,2]
[385367820,1757794240999,-400.0,0.00027943,2]
[385367822,1757794241008,-400.0,0.00027943,2]
[385367824,1757794241016,-400.0,0.00027943,2]
[385367826,1757794241025,-400.0,0.00027943,2]
[385367828,1757794241033,-400.0,0.00027943,2]
[385367830,1757794241042,-1134.48,0.00027943,2]
[385367832,1757794241051,-400.0,0.00027943,2]
[385367834,1757794241060,-400.0,0.00027943,2]
[385367836,1757794241069,-401.33001911,0.00027943,2]
[385367838,1757794241078,-405.7171103,0.00027943,2]
[385367839,1757794241087,-400.0,0.00027943,2]
[385367841,1757794241096,-400.0,0.00027943,2]
[385367843,1757794241106,-400.0,0.00027943,2]
[385367845,1757794241114,-400.0,0.00027943,2]
[385367847,1757794241123,-661.79,0.00027943,2]
[385367849,1757794241132,-400.0,0.00027943,2]
[385367851,1757794241142,-400.0,0.00027943,2]
[385367853,1757794241150,-473.25,0.00027943,2]
[385367855,1757794241159,-882.97,0.00027943,2]
[385367857,1757794241169,-400.0,0.00027943,2]
[385367859,1757794241178,-400.0,0.00027943,2]
[385367861,1757794241187,-400.0,0.00027943,2]
[385367863,1757794241196,-400.0,0.00027943,2]
[385367865,1757794241205,-400.0,0.00027943,2]
[385367867,1757794241214,-400.0,0.00027943,2]
[385367869,1757794241223,-538.67,0.00027943,2]
[385367871,1757794241232,-400.66879698,0.00027943,2]
[385367873,1757794241239,-400.0,0.00027943,2]
[385367875,1757794241247,-2484.05,0.00027943,2]
[385367877,1757794241255,-400.0,0.00027943,2]
[385367879,1757794241263,-400.0,0.00027943,2]
[385367881,1757794241272,-722.92,0.00027943,2]
[385367883,1757794241284,-400.0,0.00027943,2]
[385367885,1757794241293,-400.0,0.00027943,2]
[385367887,1757794241301,-400.0,0.00027943,2]
[385367889,1757794241310,-1451.91,0.00027943,2]
[385367891,1757794241321,-400.0,0.00027943,2]
[385367893,1757794241330,-400.0,0.00027943,2]
[385367895,1757794241339,-400.0,0.00027943,2]
[385367897,1757794241348,-400.0,0.00027943,2]
[385367899,1757794241358,-400.0,0.00027943,2]
[385367901,1757794241367,-400.0,0.00027943,2]
[385367903,1757794241376,-400.0,0.00027943,2]
[385367905,1757794241384,-645.22,0.00027943,2]
[385367907,1757794241393,-400.0,0.00027943,2]
[385367909,1757794241401,-400.0,0.00027943,2]
[385367911,1757794241410,-400.0,0.00027943,2]
[385367913,1757794241419,-400.0,0.00027943,2]
[385367915,1757794241428,-825.2,0.00027943,2]
[385367917,1757794241437,-400.0,0.00027943,2]
[385367919,1757794241445,-957.62,0.00027943,2]
[385367921,1757794241455,-598.73,0.00027943,2]
[385367923,1757794241464,-400.0,0.00027943,2]
[385367925,1757794241472,-400.0,0.00027943,2]
[385367927,1757794241481,-400.0,0.00027943,2]
[385367928,1757794241491,-500.0,0.00027943,2]
[385367929,1757794241500,-1063.96,0.00027943,2]
[385367930,1757794241509,-400.0,0.00027943,2]
[385367931,1757794241519,-500.0,0.00027943,2]
[385367932,1757794241528,-400.0,0.00027943,2]
[385367933,1757794241537,-818.67,0.00027943,2]
[385367934,1757794241546,-400.0,0.00027943,2]
[385367935,1757794241555,-548.17,0.00027943,2]
[385367936,1757794241565,-400.0,0.00027943,2]
[385367937,1757794241574,-400.0,0.00027943,2]
[385367938,1757794241583,-462.14,0.00027943,2]
[385367939,1757794241592,-500.0,0.00027943,2]
[385367940,1757794241601,-303.6536448,0.00027943,2]
[385367942,1757794241610,-918.85,0.00027943,2]
[385367944,1757794241619,-966.05,0.00027943,2]
[385367946,1757794241628,-1034.41,0.00027943,2]
[385367948,1757794241637,-400.0,0.00027943,2]
[385367950,1757794241646,-400.0,0.00027943,2]
[385367952,1757794241655,-400.0,0.00027943,2]
[385367954,1757794241665,-1001.66,0.00027943,2]
[385367956,1757794241675,-400.0,0.00027943,2]
[385367958,1757794241684,-438.0,0.00027943,2]
[385367960,1757794241693,-400.0,0.00027943,2]
[385367962,1757794241703,-400.0,0.00027943,2]
[385367964,1757794241712,-500.0,0.00027943,2]
[385367966,1757794241721,-400.0,0.00027943,2]
[385367968,1757794241730,-400.0,0.00027943,2]
[385367970,1757794241740,-400.0,0.00027943,2]
[385367972,1757794241749,-400.0,0.00027943,2]
[385367974,1757794241758,-400.0,0.00027943,2]
[385367976,1757794241771,-400.0,0.00027943,2]
[385367978,1757794241780,-400.0,0.00027943,2]
[385367980,1757794241790,-400.66992106,0.00027943,2]
[385367982,1757794241799,-400.0,0.00027943,2]
[385367984,1757794241809,-409.08024151,0.00027943,2]
[385367986,1757794241821,-404.1577092,0.00027943,2]
[385367988,1757794241830,-400.0,0.00027943,2]
[385367990,1757794241839,-574.16,0.00027943,2]
[385367992,1757794241848,-400.0,0.00027943,2]
[385367994,1757794241858,-400.0,0.00027943,2]
[385367996,1757794241871,-400.0,0.00027943,2]
[385367998,1757794241886,-400.0,0.00027943,2]
[385368000,1757794241895,-400.0,0.00027943,2]
[385368002,1757794241904,-400.0,0.00027943,2]
[385368004,1757794241914,-400.0,0.00027943,2]
[385368006,1757794241923,-288.72073879,0.00027943,2]
[385368008,1757794241933,-485.67198489,0.00027943,2]
[385368010,1757794241942,-400.0,0.00027943,2]
[385368012,1757794241950,-582.95,0.00027943,2]
[385368014,1757794241960,-1482.71,0.00027943,2]
[385368016,1757794241969,-400.0,0.00027943,2]
[385368018,1757794241978,-400.0,0.00027943,2]
[385368020,1757794241987,-842.83,0.00027943,2]
[385368022,1757794241996,-400.0,0.00027943,2]
[385368024,1757794242006,-400.0,0.00027943,2]
[385368026,1757794242015,-1404.48,0.00027943,2]
[385368028,1757794242025,-400.0,0.00027943,2]
[385368030,1757794242034,-400.0,0.00027943,2]
[385368032,1757794242043,-591.43,0.00027943,2]
[385368034,1757794242052,-400.0,0.00027943,2]
[385368036,1757794242062,-400.0,0.00027943,2]
[385368038,1757794242071,-400.0,0.00027943,2]
[385368040,1757794242080,-400.0,0.00027943,2]
[385368042,1757794242090,-400.0,0.00027943,2]
[385368044,1757794242099,-400.0,0.00027943,2]
[385368046,1757794242108,-611.84,0.00027943,2]
[385368048,1757794242118,-808.1,0.00027943,2]
[385368050,1757794242127,-400.0,0.00027943,2]
[385368052,1757794242137,-500.0,0.00027973,5]
[385368054,1757794242147,-503.53466801,0.00027973,5]
[385368056,1757794242157,-300.0,0.00027973,5]
[385368058,1757794242167,-515.60081738,0.00028,10]
[385368060,1757794242176,-212.99211257,0.00028,10]
[385368063,1757794242187,-5000.0,0.0002808,2]
[385368065,1757794242196,-400.0,0.00028094,2]
[385368066,1757794242208,-632.19,0.00028094,2]
[385368069,1757794242217,-1953.52,0.00028094,2]
[385368070,1757794242227,-1339.39,0.00028094,2]
[385368072,1757794242236,-400.0,0.00028094,2]
[385368074,1757794242245,-400.0,0.00028094,2]
[385368076,1757794242254,-777.0,0.00028094,2]
[385368078,1757794242263,-766.43,0.00028094,2]
[385368081,1757794242272,-400.0,0.00028094,2]
[385368082,1757794242285,-400.0,0.00028094,2]
[385368084,1757794242294,-400.0,0.00028094,2]
[385368086,1757794242303,-500.0,0.00028094,2]
[385368089,1757794242312,-400.0,0.00028094,2]
[385368090,1757794242322,-400.0,0.00028094,2]
[385368092,1757794242331,-400.0,0.00028094,2]
[385368094,1757794242340,-400.0,0.00028095,2]
[385368096,1757794242350,-471.03,0.00028095,2]
[385368098,1757794242359,-400.0,0.00028095,2]
[385368100,1757794242368,-400.0,0.00028095,2]
[385368102,1757794242377,-735.62,0.00028095,2]
[385368104,1757794242386,-400.0,0.00028095,2]
[385368106,1757794242396,-814.58,0.00028095,2]
[385368108,1757794242404,-1019.8,0.00028095,2]
[385368110,1757794242414,-400.0,0.00028095,2]
[385368112,1757794242423,-872.48,0.00028095,2]
[385368114,1757794242431,-1231.93,0.00028095,2]
[385368116,1757794242441,-646.85,0.00028095,2]
[385368118,1757794242451,-454.6,0.00028095,2]
[385368120,1757794242460,-503.23,0.00028095,2]
[385368122,1757794242469,-1472.49,0.00028095,2]
[385368124,1757794242478,-507.98,0.00028095,2]
[385368126,1757794242488,-400.0,0.00028095,2]
[385368128,1757794242497,-927.69,0.00028095,2]
[385368130,1757794242506,-400.0,0.00028095,2]
[385368132,1757794242515,-400.0,0.00028095,2]
[385368134,1757794242524,-1512.11,0.00028095,2]
[385368136,1757794242533,-449.65,0.00028095,2]
[385368138,1757794242542,-400.0,0.00028095,2]
[385368140,1757794242551,-400.0,0.00028095,2]
[385368143,1757794242561,-400.0,0.00028095,2]
[385368145,1757794242570,-1151.91,0.00028095,2]
[385368148,1757794242580,-400.0,0.00028095,2]
[385368150,1757794242589,-816.95,0.00028095,2]
[385368152,1757794242598,-400.0,0.00028095,2]
[385368154,1757794242607,-400.0,0.00028095,2]
[385368156,1757794242617,-400.0,0.00028095,2]
[385368158,1757794242626,-795.49,0.00028095,2]
[385368160,1757794242636,-1032.45,0.00028095,2]
[385368162,1757794242645,-400.0,0.00028095,2]
[385368164,1757794242654,-1075.27,0.00028095,2]
[385368166,1757794242663,-534.32,0.00028095,2]
[385368168,1757794242673,-668.2,0.0002816,2]
[385368170,1757794242682,-400.0,0.00028169,2]
[385368172,1757794242691,-400.0,0.00028169,2]
[385368174,1757794242700,-400.0,0.00028169,2]
[385368176,1757794242709,-11915.4829365,0.0002817,2]
[385368178,1757794242718,-257.21848968,0.00028201,2]
[385368180,1757794242728,-543.74161272,0.00028216,2]
[385368182,1757794242737,-382.57119808,0.00028216,2]
[385368184,1757794242746,-400.0,0.00028217,2]
[385368186,1757794242755,-404.25004097,0.00028217,2]
[385368188,1757794242765,-400.0,0.00028217,2]
[385368190,1757794242774,-560.25,0.00028217,2]
[385368192,1757794242783,-400.0,0.00028217,2]
[385368194,1757794242793,-400.0,0.00028217,2]
[385368196,1757794242802,-400.0,0.00028217,2]
[385368198,1757794242812,-400.0,0.00028217,2]
[385368200,1757794242821,-400.0,0.00028217,2]
[385368202,1757794242830,-1098.8,0.00028217,2]
[385368204,1757794242842,-233.21289104,0.00028217,2]
[385368206,1757794242851,-400.0,0.00028217,2]
[385368208,1757794242860,-400.0,0.00028217,2]
[385368210,1757794242870,-597.15,0.00028217,2]
[385368212,1757794242879,-400.0,0.00028217,2]
[385368214,1757794242888,-400.0,0.00028217,2]
[385368216,1757794242897,-400.0,0.00028217,2]
[385368218,1757794242906,-400.0,0.00028217,2]
[385368220,1757794242915,-552.85,0.00028217,2]
[385368222,1757794242930,-495.86,0.00028217,2]
[385368224,1757794242939,-458.38,0.00028217,2]
[385368226,1757794242948,-400.0,0.00028217,2]
[385368228,1757794242957,-1117.25,0.00028217,2]
[385368230,1757794242967,-457.63655663,0.00028217,2]
[385368232,1757794242976,-855.5,0.00028217,2]
[385368234,1757794242985,-400.0,0.00028217,2]
[385368236,1757794242994,-400.0,0.00028217,2]
[385368238,1757794243003,-400.0,0.00028217,2]
[385368240,1757794243012,-400.0,0.00028217,2]
[385368242,1757794243020,-480.34106258,0.00028217,2]
[385368244,1757794243029,-400.0,0.00028217,2]
[385368246,1757794243039,-400.0,0.00028217,2]
[385368248,1757794243048,-400.0,0.00028217,2]
[385368250,1757794243060,-400.0,0.00028217,2]
[385368252,1757794243069,-400.0,0.00028217,2]
[385368254,1757794243079,-400.0,0.00028217,2]
[385368256,1757794243088,-463.2,0.00028217,2]
[385368258,1757794243097,-400.0,0.00028217,2]
[385368260,1757794243105,-400.0,0.00028217,2]
[385368262,1757794243115,-617.72,0.00028217,2]
[385368264,1757794243123,-400.0,0.00028217,2]
[385368266,1757794243132,-400.0,0.00028217,2]
[385368268,1757794243141,-400.0,0.00028217,2]
[385368270,1757794243150,-400.0,0.00028217,2]
[385368272,1757794243159,-1134.48,0.00028217,2]
[385368274,1757794243169,-400.0,0.00028217,2]
[385368276,1757794243180,-400.0,0.00028217,2]
[385368278,1757794243189,-400.0,0.00028217,2]
[385368280,1757794243198,-400.0,0.00028217,2]
[385368282,1757794243207,-661.79,0.00028217,2]
[385368284,1757794243216,-261.07423831,0.00028217,2]
[385368286,1757794243225,-400.0,0.00028217,2]
[385368288,1757794243234,-473.25,0.00028217,2]
[385368290,1757794243244,-882.97,0.00028217,2]